[Event "Titled Tuesday Blitz March 15 Late 2022"]
[White "Babazada, Khazar"]
[Black "Bok, Benjamin"]
[WhiteFideId "13413554"]
[BlackFideId "1017063"]
[WhiteElo "2831"]
[BlackElo "2939"]
[Result "0-1"]
[Round "04"]
[TimeControl "180+1"]
[Date "2022.03.15"]
[WhiteClock "0:00:01"]
[BlackClock "0:00:16"]

1. Nf3 {[%clk 0:02:57]}  d5 {[%clk 0:02:59]} 2. g3 {[%clk 0:02:58]}  c6 {[%clk 0:02:59]} 3. Bg2 {[%clk 0:02:59]}  Bg4 {[%clk 0:02:59]} 4. O-O {[%clk 0:02:59]}  Nd7 {[%clk 0:02:59]} 5. d3 {[%clk 0:02:58]}  Ngf6 {[%clk 0:02:59]} 6. b3 {[%clk 0:02:57]}  e5 {[%clk 0:02:57]} 7. Bb2 {[%clk 0:02:57]}  Bd6 {[%clk 0:02:57]} 8. Nbd2 {[%clk 0:02:57]}  h6 {[%clk 0:02:54]} 9. h3 {[%clk 0:02:57]}  Be6 {[%clk 0:02:53]} 10. e4 {[%clk 0:02:57]}  O-O {[%clk 0:02:53]} 11. Qe2 {[%clk 0:02:57]}  Re8 {[%clk 0:02:49]} 12. Nh4 {[%clk 0:02:56]}  a5 {[%clk 0:02:46]} 13. a3 {[%clk 0:02:56]}  Qc7 {[%clk 0:02:44]} 14. Nf5 {[%clk 0:02:46]}  Bxf5 {[%clk 0:01:56]} 15. exf5 {[%clk 0:02:47]}  Bc5 {[%clk 0:01:32]} 16. Kh2 {[%clk 0:02:43]}  Bd4 {[%clk 0:01:24]} 17. c3 {[%clk 0:02:39]}  Bb6 {[%clk 0:01:20]} 18. Rae1 {[%clk 0:02:34]}  Nc5 {[%clk 0:01:18]} 19. c4 {[%clk 0:02:17]}  Ncd7 {[%clk 0:01:04]} 20. Qd1 {[%clk 0:01:58]}  Qd6 {[%clk 0:01:01]} 21. Qa1 {[%clk 0:01:53]}  Re7 {[%clk 0:00:52]} 22. Re2 {[%clk 0:01:44]}  Rae8 {[%clk 0:00:51]} 23. Rfe1 {[%clk 0:01:44]}  Bc7 {[%clk 0:00:42]} 24. Kh1 {[%clk 0:01:43]}  Bb8 {[%clk 0:00:32]} 25. Nf1 {[%clk 0:01:37]}  Nc5 {[%clk 0:00:30]} 26. cxd5 {[%clk 0:01:25]}  Nxd3 {[%clk 0:00:26]} 27. Rd1 {[%clk 0:01:25]}  Nxb2 {[%clk 0:00:26]} 28. Qxb2 {[%clk 0:01:24]}  cxd5 {[%clk 0:00:27]} 29. Ne3 {[%clk 0:01:25]}  e4 {[%clk 0:00:27]} 30. Red2 {[%clk 0:01:13]}  Qb6 {[%clk 0:00:26]} 31. Rxd5 {[%clk 0:00:55]}  Bxg3 {[%clk 0:00:25]} 32. a4 {[%clk 0:00:37]}  Nxd5 {[%clk 0:00:21]} 33. Nxd5 {[%clk 0:00:21]}  Qxf2 {[%clk 0:00:22]} 34. Nxe7+ {[%clk 0:00:22]}  Rxe7 {[%clk 0:00:22]} 35. Qa3 {[%clk 0:00:11]}  Rd7 {[%clk 0:00:17]} 36. Rf1 {[%clk 0:00:09]}  Qe2 {[%clk 0:00:17]} 37. f6 {[%clk 0:00:09]}  Rd2 {[%clk 0:00:16]} 38. Rg1 {[%clk 0:00:01]}  Bf2 {[%clk 0:00:16]} 0-1


[Site "https://www.chess.com"]

[Event "Titled Tuesday Blitz March 15 Late 2022"]
[White "Baches Garcia, Guillermo"]
[Black "Araujo Sanchez, Josue"]
[WhiteFideId "2209764"]
[BlackFideId "6416896"]
[WhiteElo "2448"]
[BlackElo "2357"]
[Result "0-1"]
[Round "04"]
[TimeControl "180+1"]
[Date "2022.03.16"]
[WhiteClock "0:00:06"]
[BlackClock "0:01:39"]

1. e4 {[%clk 0:03:00]}  c6 {[%clk 0:02:59]} 2. c4 {[%clk 0:02:59]}  g6 {[%clk 0:02:54]} 3. Nc3 {[%clk 0:02:58]}  Bg7 {[%clk 0:02:55]} 4. d4 {[%clk 0:02:56]}  d6 {[%clk 0:02:55]} 5. f4 {[%clk 0:02:56]}  Nd7 {[%clk 0:02:54]} 6. Nf3 {[%clk 0:02:56]}  e5 {[%clk 0:02:55]} 7. fxe5 {[%clk 0:02:53]}  dxe5 {[%clk 0:02:56]} 8. d5 {[%clk 0:02:53]}  Ngf6 {[%clk 0:02:56]} 9. Bd3 {[%clk 0:02:47]}  O-O {[%clk 0:02:53]} 10. O-O {[%clk 0:02:46]}  Nc5 {[%clk 0:02:52]} 11. Bc2 {[%clk 0:02:42]}  Qe7 {[%clk 0:02:48]} 12. d6 {[%clk 0:02:21]}  Qe8 {[%clk 0:02:46]} 13. Be3 {[%clk 0:02:17]}  Ne6 {[%clk 0:02:45]} 14. Kh1 {[%clk 0:02:03]}  Nd7 {[%clk 0:02:41]} 15. b4 {[%clk 0:01:58]}  c5 {[%clk 0:02:41]} 16. a3 {[%clk 0:01:51]}  b6 {[%clk 0:02:41]} 17. Nd5 {[%clk 0:01:48]}  Bb7 {[%clk 0:02:40]} 18. Ne7+ {[%clk 0:01:19]}  Kh8 {[%clk 0:02:38]} 19. Ng5 {[%clk 0:01:18]}  Nd4 {[%clk 0:02:27]} 20. Ba4 {[%clk 0:01:12]}  Rd8 {[%clk 0:02:20]} 21. Qe1 {[%clk 0:00:58]}  f6 {[%clk 0:02:13]} 22. Nxh7 {[%clk 0:00:51]}  g5 {[%clk 0:02:06]} 23. Nxg5 {[%clk 0:00:29]}  fxg5 {[%clk 0:02:01]} 24. Rxf8+ {[%clk 0:00:25]}  Bxf8 {[%clk 0:02:01]} 25. Bxg5 {[%clk 0:00:22]}  Qh5 {[%clk 0:02:01]} 26. Ng6+ {[%clk 0:00:17]}  Qxg6 {[%clk 0:02:01]} 27. Bxd8 {[%clk 0:00:17]}  Bc6 {[%clk 0:01:55]} 28. Qh4+ {[%clk 0:00:15]}  Kg8 {[%clk 0:01:55]} 29. Bxc6 {[%clk 0:00:14]}  Nxc6 {[%clk 0:01:56]} 30. Rf1 {[%clk 0:00:13]}  Bxd6 {[%clk 0:01:51]} 31. Bg5 {[%clk 0:00:11]}  Bf8 {[%clk 0:01:50]} 32. b5 {[%clk 0:00:10]}  Nd4 {[%clk 0:01:48]} 33. Be7 {[%clk 0:00:10]}  Bg7 {[%clk 0:01:47]} 34. h3 {[%clk 0:00:10]}  Nf8 {[%clk 0:01:44]} 35. Bxf8 {[%clk 0:00:10]}  Bxf8 {[%clk 0:01:44]} 36. Qd8 {[%clk 0:00:09]}  Ne6 {[%clk 0:01:41]} 37. Qd5 {[%clk 0:00:08]}  Bg7 {[%clk 0:01:39]} 38. Rf5 {[%clk 0:00:08]}  Kh7 {[%clk 0:01:38]} 39. Qd3 {[%clk 0:00:06]}  Nf4 {[%clk 0:01:39]} 40. Qd7 {[%clk 0:00:06]}  Qxg2# {[%clk 0:01:39]} 0-1


[Site "https://www.chess.com"]

[Event "Titled Tuesday Blitz March 15 Late 2022"]
[White "Barp, Alberto"]
[Black "Brunner, Nicolas"]
[WhiteFideId "872555"]
[BlackFideId "620246"]
[WhiteElo "2229"]
[BlackElo "2372"]
[Result "1-0"]
[Round "04"]
[TimeControl "180+1"]
[Date "2022.03.16"]
[WhiteClock "0:00:07"]
[BlackClock "0:00:01"]

1. d4 {[%clk 0:03:00]}  d5 {[%clk 0:02:59]} 2. Nf3 {[%clk 0:03:00]}  Nf6 {[%clk 0:02:57]} 3. Bf4 {[%clk 0:02:57]}  e6 {[%clk 0:02:57]} 4. e3 {[%clk 0:02:55]}  c5 {[%clk 0:02:56]} 5. Nbd2 {[%clk 0:02:54]}  Nc6 {[%clk 0:02:55]} 6. c3 {[%clk 0:02:54]}  Bd6 {[%clk 0:02:54]} 7. Ne5 {[%clk 0:02:48]}  O-O {[%clk 0:02:48]} 8. Bd3 {[%clk 0:02:46]}  Qc7 {[%clk 0:02:40]} 9. Nxc6 {[%clk 0:02:30]}  bxc6 {[%clk 0:02:30]} 10. Bxd6 {[%clk 0:02:15]}  Qxd6 {[%clk 0:02:30]} 11. Nf3 {[%clk 0:02:16]}  cxd4 {[%clk 0:02:28]} 12. exd4 {[%clk 0:01:55]}  c5 {[%clk 0:02:27]} 13. dxc5 {[%clk 0:01:55]}  Qxc5 {[%clk 0:02:27]} 14. O-O {[%clk 0:01:56]}  a5 {[%clk 0:02:24]} 15. Qe2 {[%clk 0:01:55]}  Bb7 {[%clk 0:02:16]} 16. Ne5 {[%clk 0:01:50]}  Rfd8 {[%clk 0:01:58]} 17. Rfd1 {[%clk 0:01:48]}  Rab8 {[%clk 0:01:45]} 18. Rac1 {[%clk 0:01:47]}  Ba8 {[%clk 0:01:44]} 19. Rc2 {[%clk 0:01:42]}  Qb6 {[%clk 0:01:38]} 20. h3 {[%clk 0:01:33]}  h6 {[%clk 0:01:35]} 21. Rcd2 {[%clk 0:01:30]}  Nd7 {[%clk 0:01:22]} 22. Nf3 {[%clk 0:01:17]}  Nc5 {[%clk 0:01:20]} 23. Bb1 {[%clk 0:01:14]}  a4 {[%clk 0:01:15]} 24. Ne5 {[%clk 0:01:12]}  Qc7 {[%clk 0:01:07]} 25. Re1 {[%clk 0:01:10]}  Ne4 {[%clk 0:01:02]} 26. Bxe4 {[%clk 0:01:08]}  dxe4 {[%clk 0:01:02]} 27. Rxd8+ {[%clk 0:00:57]}  Rxd8 {[%clk 0:01:02]} 28. Nc4 {[%clk 0:00:57]}  Bd5 {[%clk 0:01:02]} 29. Nd2 {[%clk 0:00:55]}  Bxa2 {[%clk 0:01:00]} 30. Nxe4 {[%clk 0:00:54]}  Bd5 {[%clk 0:00:53]} 31. Ng3 {[%clk 0:00:51]}  Rb8 {[%clk 0:00:51]} 32. Rd1 {[%clk 0:00:48]}  Qb7 {[%clk 0:00:48]} 33. Nh5 {[%clk 0:00:32]}  Qxb2 {[%clk 0:00:44]} 34. Qe5 {[%clk 0:00:26]}  f6 {[%clk 0:00:41]} 35. Qg3 {[%clk 0:00:22]}  Qb7 {[%clk 0:00:25]} 36. Nxf6+ {[%clk 0:00:22]}  Kh8 {[%clk 0:00:25]} 37. Nh5 {[%clk 0:00:12]}  a3 {[%clk 0:00:23]} 38. c4 {[%clk 0:00:12]}  Bxc4 {[%clk 0:00:17]} 39. Qxa3 {[%clk 0:00:12]}  Qb3 {[%clk 0:00:14]} 40. Qd6 {[%clk 0:00:11]}  Qb7 {[%clk 0:00:11]} 41. Re1 {[%clk 0:00:10]}  Bd5 {[%clk 0:00:11]} 42. Qe5 {[%clk 0:00:10]}  Rf8 {[%clk 0:00:06]} 43. Nf4 {[%clk 0:00:09]}  Qf7 {[%clk 0:00:05]} 44. g3 {[%clk 0:00:05]}  Qf5 {[%clk 0:00:04]} 45. Qxf5 {[%clk 0:00:04]}  Rxf5 {[%clk 0:00:03]} 46. Re3 {[%clk 0:00:03]}  Rf6 {[%clk 0:00:03]} 47. Nd3 {[%clk 0:00:03]}  Kh7 {[%clk 0:00:03]} 48. Ne5 {[%clk 0:00:04]}  Rf8 {[%clk 0:00:03]} 49. f4 {[%clk 0:00:05]}  Rb8 {[%clk 0:00:02]} 50. Kf2 {[%clk 0:00:05]}  Rb2+ {[%clk 0:00:02]} 51. Re2 {[%clk 0:00:06]}  Rb3 {[%clk 0:00:03]} 52. Re3 {[%clk 0:00:06]}  Rb2+ {[%clk 0:00:03]} 53. Re2 {[%clk 0:00:06]}  Rb3 {[%clk 0:00:04]} 54. Kg1 {[%clk 0:00:06]}  Rxg3+ {[%clk 0:00:03]} 55. Kh2 {[%clk 0:00:07]}  Rb3 {[%clk 0:00:03]} 56. Ng4 {[%clk 0:00:07]}  Rb4 {[%clk 0:00:03]} 57. Rf2 {[%clk 0:00:07]}  Rb3 {[%clk 0:00:03]} 58. Ne5 {[%clk 0:00:07]}  h5 {[%clk 0:00:03]} 59. Kg1 {[%clk 0:00:05]}  h4 {[%clk 0:00:03]} 60. Kh2 {[%clk 0:00:05]}  Rb1 {[%clk 0:00:03]} 61. Nf3 {[%clk 0:00:06]}  Bxf3 {[%clk 0:00:01]} 62. Rxf3 {[%clk 0:00:07]}  Re1 {[%clk 0:00:01]} 63. Kg2 {[%clk 0:00:07]}  Kg6 {[%clk 0:00:01]} 64. Kf2 {[%clk 0:00:06]}  Rh1 {[%clk 0:00:01]} 65. Kg2 {[%clk 0:00:07]} 1-0


[Site "https://www.chess.com"]

[Event "Titled Tuesday Blitz March 15 Late 2022"]
[White "Beerdsen, Thomas"]
[Black "Iskusnyh, Sergei"]
[WhiteFideId "1030108"]
[BlackFideId "4120027"]
[WhiteElo "2585"]
[BlackElo "2492"]
[Result "0-1"]
[Round "04"]
[TimeControl "180+1"]
[Date "2022.03.15"]
[WhiteClock "0:00:30"]
[BlackClock "0:00:24"]

1. e4 {[%clk 0:03:00]}  e6 {[%clk 0:02:58]} 2. d4 {[%clk 0:03:00]}  d5 {[%clk 0:02:58]} 3. Nc3 {[%clk 0:03:01]}  Nf6 {[%clk 0:02:57]} 4. Bg5 {[%clk 0:03:00]}  dxe4 {[%clk 0:02:56]} 5. Nxe4 {[%clk 0:03:01]}  Nbd7 {[%clk 0:02:56]} 6. Nf3 {[%clk 0:03:01]}  h6 {[%clk 0:02:56]} 7. Bxf6 {[%clk 0:03:01]}  Nxf6 {[%clk 0:02:54]} 8. Nxf6+ {[%clk 0:03:01]}  Qxf6 {[%clk 0:02:53]} 9. Bd3 {[%clk 0:03:02]}  Bd7 {[%clk 0:02:43]} 10. O-O {[%clk 0:02:53]}  O-O-O {[%clk 0:02:41]} 11. Be4 {[%clk 0:02:51]}  Kb8 {[%clk 0:02:36]} 12. c4 {[%clk 0:02:48]}  Bc8 {[%clk 0:02:24]} 13. Qb3 {[%clk 0:02:45]}  g5 {[%clk 0:02:19]} 14. Ne5 {[%clk 0:02:40]}  Ka8 {[%clk 0:02:11]} 15. Nc6 {[%clk 0:02:26]}  Rd6 {[%clk 0:01:59]} 16. Na5 {[%clk 0:02:17]}  Rb6 {[%clk 0:01:52]} 17. Qe3 {[%clk 0:02:14]}  Qf4 {[%clk 0:01:44]} 18. c5 {[%clk 0:02:06]}  Rxb2 {[%clk 0:01:43]} 19. Rab1 {[%clk 0:02:00]}  Rxb1 {[%clk 0:00:58]} 20. Rxb1 {[%clk 0:02:01]}  Qxe3 {[%clk 0:00:58]} 21. fxe3 {[%clk 0:02:02]}  c6 {[%clk 0:00:57]} 22. Nxc6 {[%clk 0:02:02]}  f5 {[%clk 0:00:57]} 23. Ne5 {[%clk 0:01:08]}  fxe4 {[%clk 0:00:56]} 24. Ng6 {[%clk 0:01:09]}  Rg8 {[%clk 0:00:54]} 25. Rf1 {[%clk 0:01:10]}  Bxc5 {[%clk 0:00:48]} 26. Ne5 {[%clk 0:00:58]}  Bd6 {[%clk 0:00:47]} 27. Nf7 {[%clk 0:00:58]}  Bb4 {[%clk 0:00:44]} 28. Nxh6 {[%clk 0:00:56]}  Rd8 {[%clk 0:00:42]} 29. Nf7 {[%clk 0:00:56]}  Rg8 {[%clk 0:00:41]} 30. Nh6 {[%clk 0:00:56]}  Re8 {[%clk 0:00:38]} 31. Nf7 {[%clk 0:00:55]}  Bd2 {[%clk 0:00:38]} 32. Kf2 {[%clk 0:00:56]}  b6 {[%clk 0:00:36]} 33. Rd1 {[%clk 0:00:44]}  Rf8 {[%clk 0:00:35]} 34. Rxd2 {[%clk 0:00:44]}  Rxf7+ {[%clk 0:00:35]} 35. Kg3 {[%clk 0:00:45]}  Kb7 {[%clk 0:00:34]} 36. Rb2 {[%clk 0:00:38]}  Bd7 {[%clk 0:00:34]} 37. a3 {[%clk 0:00:32]}  Rf5 {[%clk 0:00:33]} 38. Kg4 {[%clk 0:00:31]}  e5 {[%clk 0:00:31]} 39. Kh5 {[%clk 0:00:30]}  exd4 {[%clk 0:00:30]} 40. exd4 {[%clk 0:00:31]}  Rd5 {[%clk 0:00:29]} 41. Rd2 {[%clk 0:00:31]}  Bb5 {[%clk 0:00:24]} 42. Kg4 {[%clk 0:00:29]}  e3 {[%clk 0:00:24]} 43. Rb2 {[%clk 0:00:30]}  e2 {[%clk 0:00:23]} 44. Rb1 {[%clk 0:00:29]}  Rxd4+ {[%clk 0:00:23]} 45. Kf3 {[%clk 0:00:30]}  Rd1 {[%clk 0:00:24]} 0-1


[Site "https://www.chess.com"]

[Event "Titled Tuesday Blitz March 15 Late 2022"]
[White "Bluebaum, Matthias"]
[Black "Rosen, Eric"]
[WhiteFideId "24651516"]
[BlackFideId "2032562"]
[WhiteElo "2550"]
[BlackElo "2362"]
[Result "1-0"]
[Round "04"]
[TimeControl "180+1"]
[Date "2022.03.15"]
[WhiteClock "0:01:07"]
[BlackClock "0:00:02"]

1. b3 {[%clk 0:03:00]}  e5 {[%clk 0:03:00]} 2. Bb2 {[%clk 0:03:01]}  Nc6 {[%clk 0:03:00]} 3. e3 {[%clk 0:03:02]}  Nf6 {[%clk 0:03:01]} 4. Nf3 {[%clk 0:03:02]}  e4 {[%clk 0:03:01]} 5. Nd4 {[%clk 0:03:03]}  Nxd4 {[%clk 0:03:02]} 6. Bxd4 {[%clk 0:03:04]}  d5 {[%clk 0:03:02]} 7. c4 {[%clk 0:03:04]}  Be7 {[%clk 0:02:50]} 8. Nc3 {[%clk 0:03:02]}  dxc4 {[%clk 0:02:34]} 9. Bxc4 {[%clk 0:03:02]}  Bf5 {[%clk 0:02:34]} 10. O-O {[%clk 0:02:59]}  O-O {[%clk 0:02:33]} 11. f3 {[%clk 0:02:56]}  c5 {[%clk 0:02:07]} 12. Be5 {[%clk 0:02:38]}  exf3 {[%clk 0:01:34]} 13. Qxf3 {[%clk 0:02:39]}  Bg4 {[%clk 0:01:35]} 14. Qg3 {[%clk 0:02:10]}  Bh5 {[%clk 0:01:13]} 15. Nd5 {[%clk 0:02:03]}  Bg6 {[%clk 0:00:44]} 16. Nxe7+ {[%clk 0:02:02]}  Qxe7 {[%clk 0:00:44]} 17. Bd6 {[%clk 0:02:03]}  Qd7 {[%clk 0:00:38]} 18. Bxf8 {[%clk 0:02:03]}  Rxf8 {[%clk 0:00:38]} 19. Rad1 {[%clk 0:01:56]}  Ne4 {[%clk 0:00:32]} 20. Qe5 {[%clk 0:01:35]}  Re8 {[%clk 0:00:30]} 21. Qb2 {[%clk 0:01:28]}  b5 {[%clk 0:00:30]} 22. Be2 {[%clk 0:01:27]}  h5 {[%clk 0:00:24]} 23. d4 {[%clk 0:01:22]}  c4 {[%clk 0:00:20]} 24. bxc4 {[%clk 0:01:21]}  bxc4 {[%clk 0:00:21]} 25. Bxc4 {[%clk 0:01:20]}  Nd6 {[%clk 0:00:22]} 26. Bb3 {[%clk 0:01:14]}  Rxe3 {[%clk 0:00:20]} 27. Rfe1 {[%clk 0:01:14]}  Qe7 {[%clk 0:00:20]} 28. Qf2 {[%clk 0:01:13]}  Re4 {[%clk 0:00:17]} 29. Bc2 {[%clk 0:01:05]}  Rxe1+ {[%clk 0:00:12]} 30. Rxe1 {[%clk 0:01:06]}  Ne4 {[%clk 0:00:09]} 31. Bxe4 {[%clk 0:01:04]}  Bxe4 {[%clk 0:00:10]} 32. Qf4 {[%clk 0:01:04]}  f5 {[%clk 0:00:10]} 33. Qxf5 {[%clk 0:01:04]}  Bxf5 {[%clk 0:00:03]} 34. Rxe7 {[%clk 0:01:05]}  a6 {[%clk 0:00:04]} 35. d5 {[%clk 0:01:03]}  Kf8 {[%clk 0:00:03]} 36. d6 {[%clk 0:01:03]}  Bd3 {[%clk 0:00:01]} 37. a3 {[%clk 0:01:04]}  Bb5 {[%clk 0:00:01]} 38. g3 {[%clk 0:01:04]}  g6 {[%clk 0:00:01]} 39. h4 {[%clk 0:01:04]}  Bc6 {[%clk 0:00:01]} 40. Kf2 {[%clk 0:01:04]}  Bb5 {[%clk 0:00:02]} 41. Ke3 {[%clk 0:01:05]}  Bc4 {[%clk 0:00:02]} 42. Kf4 {[%clk 0:01:06]}  Bd3 {[%clk 0:00:02]} 43. Kg5 {[%clk 0:01:06]}  Bf5 {[%clk 0:00:02]} 44. Kf6 {[%clk 0:01:07]}  Bd3 {[%clk 0:00:02]} 45. d7 {[%clk 0:01:07]} 1-0


[Site "https://www.chess.com"]

[Event "Titled Tuesday Blitz March 15 Late 2022"]
[White "Bortnyk, Olexandr"]
[Black "Senft, Sean"]
[WhiteFideId "14120828"]
[BlackFideId "2044960"]
[WhiteElo "2723"]
[BlackElo "1881"]
[Result "1-0"]
[Round "04"]
[TimeControl "180+1"]
[Date "2022.03.16"]
[WhiteClock "0:00:23"]
[BlackClock "0:00:04"]

1. h3 {[%clk 0:02:58]}  d5 {[%clk 0:02:59]} 2. a3 {[%clk 0:02:57]}  c6 {[%clk 0:03:00]} 3. g3 {[%clk 0:02:57]}  Nf6 {[%clk 0:03:00]} 4. Bg2 {[%clk 0:02:57]}  Bf5 {[%clk 0:03:00]} 5. b3 {[%clk 0:02:58]}  e6 {[%clk 0:03:00]} 6. Bb2 {[%clk 0:02:59]}  Nbd7 {[%clk 0:03:00]} 7. d3 {[%clk 0:02:59]}  Bd6 {[%clk 0:02:58]} 8. Nd2 {[%clk 0:03:00]}  h6 {[%clk 0:02:58]} 9. Ngf3 {[%clk 0:02:47]}  Qc7 {[%clk 0:02:54]} 10. e3 {[%clk 0:02:39]}  O-O {[%clk 0:02:53]} 11. Qe2 {[%clk 0:02:37]}  e5 {[%clk 0:02:54]} 12. e4 {[%clk 0:02:35]}  Bg6 {[%clk 0:02:50]} 13. g4 {[%clk 0:02:29]}  Rad8 {[%clk 0:02:38]} 14. Nh4 {[%clk 0:02:26]}  Bh7 {[%clk 0:02:38]} 15. Nf5 {[%clk 0:02:23]}  Rfe8 {[%clk 0:02:11]} 16. h4 {[%clk 0:02:22]}  Bxf5 {[%clk 0:01:56]} 17. gxf5 {[%clk 0:02:17]}  Bc5 {[%clk 0:01:34]} 18. Bf3 {[%clk 0:02:14]}  Bd4 {[%clk 0:01:09]} 19. c3 {[%clk 0:02:12]}  Bb6 {[%clk 0:01:09]} 20. b4 {[%clk 0:02:08]}  dxe4 {[%clk 0:01:04]} 21. dxe4 {[%clk 0:02:09]}  a5 {[%clk 0:01:00]} 22. Nc4 {[%clk 0:02:08]}  c5 {[%clk 0:00:55]} 23. b5 {[%clk 0:02:07]}  a4 {[%clk 0:00:55]} 24. Rg1 {[%clk 0:02:05]}  Kh8 {[%clk 0:00:53]} 25. O-O-O {[%clk 0:01:59]}  Nf8 {[%clk 0:00:38]} 26. Kb1 {[%clk 0:01:53]}  Ba7 {[%clk 0:00:33]} 27. Bc1 {[%clk 0:01:52]}  N8d7 {[%clk 0:00:30]} 28. Rg3 {[%clk 0:01:19]}  Nb6 {[%clk 0:00:27]} 29. Rdg1 {[%clk 0:01:19]}  Rg8 {[%clk 0:00:26]} 30. Ne3 {[%clk 0:01:09]}  Qd7 {[%clk 0:00:21]} 31. Rd1 {[%clk 0:00:57]}  Qe7 {[%clk 0:00:18]} 32. Rxd8 {[%clk 0:00:57]}  Rxd8 {[%clk 0:00:18]} 33. c4 {[%clk 0:00:58]}  Qd7 {[%clk 0:00:16]} 34. Kc2 {[%clk 0:00:52]}  Qd4 {[%clk 0:00:16]} 35. Bb2 {[%clk 0:00:52]}  Qd6 {[%clk 0:00:15]} 36. Rg1 {[%clk 0:00:42]}  Bb8 {[%clk 0:00:15]} 37. Bc3 {[%clk 0:00:39]}  Bc7 {[%clk 0:00:14]} 38. Bg2 {[%clk 0:00:27]}  Qe7 {[%clk 0:00:14]} 39. Qf3 {[%clk 0:00:27]}  Nc8 {[%clk 0:00:14]} 40. Bf1 {[%clk 0:00:27]}  Nd6 {[%clk 0:00:14]} 41. Bd3 {[%clk 0:00:28]}  Qd7 {[%clk 0:00:10]} 42. Rd1 {[%clk 0:00:25]}  Qe7 {[%clk 0:00:10]} 43. Qg2 {[%clk 0:00:24]}  Rd7 {[%clk 0:00:10]} 44. Rg1 {[%clk 0:00:24]}  Qf8 {[%clk 0:00:11]} 45. Bxe5 {[%clk 0:00:23]}  Re7 {[%clk 0:00:07]} 46. Bxf6 {[%clk 0:00:22]}  gxf6 {[%clk 0:00:08]} 47. Nd5 {[%clk 0:00:23]}  Re5 {[%clk 0:00:06]} 48. Nxf6 {[%clk 0:00:23]}  Ne8 {[%clk 0:00:04]} 49. Qg8+ {[%clk 0:00:23]} 1-0


[Site "https://www.chess.com"]

[Event "Titled Tuesday Blitz March 15 Late 2022"]
[White "Bryakin, Mikhail"]
[Black "Krishnan, Varun"]
[WhiteFideId "4165314"]
[BlackFideId "5054508"]
[WhiteElo "2417"]
[BlackElo "2570"]
[Result "1-0"]
[Round "04"]
[TimeControl "180+1"]
[Date "2022.03.16"]
[WhiteClock "0:01:00"]
[BlackClock "0:00:03"]

1. e4 {[%clk 0:02:59]}  c5 {[%clk 0:02:58]} 2. Nf3 {[%clk 0:02:54]}  e6 {[%clk 0:02:58]} 3. c3 {[%clk 0:02:49]}  d5 {[%clk 0:02:56]} 4. exd5 {[%clk 0:02:48]}  Qxd5 {[%clk 0:02:57]} 5. d4 {[%clk 0:02:47]}  Nf6 {[%clk 0:02:58]} 6. Be3 {[%clk 0:02:34]}  cxd4 {[%clk 0:02:57]} 7. Qxd4 {[%clk 0:02:20]}  Nc6 {[%clk 0:02:55]} 8. Qxd5 {[%clk 0:02:15]}  Nxd5 {[%clk 0:02:56]} 9. Bd2 {[%clk 0:02:14]}  Be7 {[%clk 0:02:53]} 10. Bc4 {[%clk 0:02:12]}  Nb6 {[%clk 0:02:53]} 11. Bb3 {[%clk 0:02:12]}  e5 {[%clk 0:02:45]} 12. O-O {[%clk 0:02:11]}  e4 {[%clk 0:02:39]} 13. Ng5 {[%clk 0:02:06]}  Bxg5 {[%clk 0:02:35]} 14. Bxg5 {[%clk 0:02:03]}  Bf5 {[%clk 0:02:20]} 15. Nd2 {[%clk 0:02:02]}  O-O {[%clk 0:02:15]} 16. Rfe1 {[%clk 0:02:01]}  Rfe8 {[%clk 0:02:12]} 17. Rad1 {[%clk 0:02:01]}  a5 {[%clk 0:02:04]} 18. a3 {[%clk 0:01:59]}  h6 {[%clk 0:01:53]} 19. Be3 {[%clk 0:01:59]}  Nd7 {[%clk 0:01:48]} 20. Nc4 {[%clk 0:01:59]}  Be6 {[%clk 0:01:35]} 21. Nd2 {[%clk 0:01:59]}  Bxb3 {[%clk 0:01:32]} 22. Nxb3 {[%clk 0:02:00]}  Nde5 {[%clk 0:01:32]} 23. Nc5 {[%clk 0:01:56]}  Nc4 {[%clk 0:01:20]} 24. Nxb7 {[%clk 0:01:48]}  Nxb2 {[%clk 0:01:16]} 25. Rd6 {[%clk 0:01:48]}  Ne5 {[%clk 0:01:14]} 26. Rd4 {[%clk 0:01:28]}  Nbc4 {[%clk 0:00:46]} 27. a4 {[%clk 0:01:24]}  Nd3 {[%clk 0:00:44]} 28. Rf1 {[%clk 0:01:21]}  Rab8 {[%clk 0:00:27]} 29. Rxc4 {[%clk 0:01:15]}  Rxb7 {[%clk 0:00:27]} 30. h4 {[%clk 0:01:14]}  Rb3 {[%clk 0:00:26]} 31. Ra1 {[%clk 0:01:11]}  Nb2 {[%clk 0:00:26]} 32. Rc5 {[%clk 0:01:09]}  Ra8 {[%clk 0:00:25]} 33. Bd4 {[%clk 0:01:08]}  Nd3 {[%clk 0:00:25]} 34. Rb5 {[%clk 0:01:06]}  Rxb5 {[%clk 0:00:23]} 35. axb5 {[%clk 0:01:07]}  f6 {[%clk 0:00:22]} 36. b6 {[%clk 0:01:08]}  Kf7 {[%clk 0:00:20]} 37. Rb1 {[%clk 0:00:59]}  Rb8 {[%clk 0:00:05]} 38. b7 {[%clk 0:00:58]}  Ne5 {[%clk 0:00:01]} 39. Ba7 {[%clk 0:00:58]}  Nc6 {[%clk 0:00:01]} 40. Bxb8 {[%clk 0:00:58]}  Nxb8 {[%clk 0:00:02]} 41. Rb5 {[%clk 0:00:59]}  Ke6 {[%clk 0:00:02]} 42. Rxa5 {[%clk 0:01:00]}  Kd7 {[%clk 0:00:03]} 43. Rc5 {[%clk 0:01:00]} 1-0


[Site "https://www.chess.com"]